fUSD/lending_fUSD_20250101
["ID","MTS","AMOUNT","RATE_DAILY","PERIOD"]
[347351074,1735723834899,-990.73,0.00010998,2]
[347351075,1735723834908,-591.48,0.00010998,2]
[347351076,1735723834917,-223.13355258,0.00010998,2]
[347351077,1735723834934,-2349.08644742,0.00010998,2]
[347351078,1735723834943,-623.07,0.00010998,2]
[347351079,1735723834953,-581.39,0.00010998,2]
[347351080,1735723834962,-1856.44,0.00010998,2]
[347351081,1735723834972,-500.0,0.00010999,2]
[347351082,1735723834983,-2308.01,0.00010999,2]
[347351083,1735723834992,-505.27,0.00010999,2]
[347351084,1735723835001,-3011.43,0.00010999,2]
[347351085,1735723835010,-500.0,0.00010999,2]
[347351086,1735723835019,-3101.48,0.00010999,2]
[347351087,1735723835028,-1630.75,0.00010999,2]
[347351088,1735723835037,-1985.56,0.00010999,2]
[347351089,1735723835045,-724.54,0.00010999,2]
[347351090,1735723835054,-500.0,0.00010999,2]
[347351091,1735723835063,-3126.83,0.00010999,2]
[347351092,1735723835072,-2988.19,0.00010999,2]
[347351093,1735723835081,-2282.73,0.00010999,2]
[347351094,1735723835090,-1021.35,0.00010999,2]
[347351095,1735723835098,-1876.7,0.00010999,2]
[347351096,1735723835107,-1503.19,0.00010999,2]
[347351097,1735723835116,-1878.28,0.00010999,2]
[347351098,1735723835125,-1424.12,0.00010999,2]
[347351099,1735723835134,-997.18,0.00010999,2]
[347351100,1735723835144,-1382.38,0.00010999,2]
[347351101,1735723835153,-1660.45,0.00010999,2]
[347351102,1735723835163,-2127.67,0.00010999,2]
[347351103,1735723835173,-500.0,0.00010999,2]
[347351104,1735723835182,-1988.76,0.00010999,2]
[347351105,1735723835191,-1785.5,0.00010999,2]
[347351106,1735723835199,-1948.6,0.00010999,2]
[347351107,1735723835209,-974.25,0.00010999,2]
[347351108,1735723835219,-500.0,0.00010999,2]
[347351109,1735723835228,-3091.52,0.00010999,2]
[347351110,1735723835237,-3181.44,0.00010999,2]
[347351111,1735723835246,-2519.3,0.00010999,2]
[347351112,1735723835258,-500.0,0.00010999,2]
[347351113,1735723835268,-500.0,0.00010999,2]
[347351114,1735723835276,-500.0,0.00010999,2]
[347351115,1735723835285,-1502.74,0.00010999,2]
[347351116,1735723835295,-1895.14,0.00010999,2]
[347351117,1735723835304,-2257.6,0.00010999,2]
[347351118,1735723835314,-1176.71,0.00010999,2]
[347351119,1735723835322,-2333.67,0.00010999,2]
[347351120,1735723835333,-2511.33,0.00010999,2]
[347351121,1735723835342,-500.0,0.00010999,2]
[347351122,1735723835351,-771.0,0.00010999,2]
[347351123,1735723835360,-1456.57,0.00010999,2]
[347351124,1735723835369,-500.0,0.00010999,2]
[347351125,1735723835379,-556.59,0.00010999,2]
[347351126,1735723835388,-3099.64,0.00010999,2]
[347351127,1735723835396,-306.09788236,0.00010999,2]
[347351128,1735723835409,-477.42211764,0.00010999,2]
[347351129,1735723835418,-1397.30926531,0.00010999,2]
[347351130,1735723835464,-757.17073469,0.00010999,2]
[347351131,1735723835473,-875.1,0.00010999,2]
[347351132,1735723835483,-588.22,0.00010999,2]
[347351133,1735723835492,-1692.02,0.00010999,2]
[347351134,1735723835501,-500.0,0.00010999,2]
[347351135,1735723835510,-1067.79,0.00010999,2]
[347351136,1735723835519,-625.94,0.00010999,2]
[347351137,1735723835528,-2494.13,0.00010999,2]
[347351138,1735723835537,-500.0,0.00010999,2]
[347351139,1735723835546,-1434.41,0.00010999,2]
[347351140,1735723835555,-1717.26,0.00010999,2]
[347351141,1735723835564,-3001.13,0.00010999,2]
[347351142,1735723835574,-1618.57,0.00010999,2]
[347351143,1735723835586,-1854.79,0.00010999,2]
[347351144,1735723835595,-1836.82,0.00010999,2]
[347351145,1735723835605,-2712.0,0.00010999,2]
[347351146,1735723835613,-500.0,0.00010999,2]
[347351147,1735723835622,-3178.78,0.00010999,2]
[347351148,1735723835632,-1323.54,0.00010999,2]
[347351149,1735723835641,-1255.75,0.00010999,2]
[347351150,1735723835649,-3040.19,0.00010999,2]
[347351151,1735723835658,-2245.91,0.00010999,2]
[347351152,1735723835668,-3082.74,0.00010999,2]
[347351153,1735723835677,-1664.67,0.00010999,2]
[347351154,1735723835686,-1652.03,0.00010999,2]
[347351155,1735723835695,-527.08,0.00010999,2]
[347351156,1735723835704,-500.0,0.00010999,2]
[347351157,1735723835713,-2323.98,0.00010999,2]
[347351158,1735723835722,-2090.93,0.00010999,2]
[347351159,1735723835731,-500.0,0.00010999,2]
[347351160,1735723835740,-3165.94,0.00010999,2]
[347351161,1735723835750,-2111.75,0.00010999,2]
[347351162,1735723835759,-953.22,0.00010999,2]
[347351163,1735723835768,-635.72,0.00010999,2]
[347351164,1735723835778,-1455.33,0.00010999,2]
[347351165,1735723835787,-1804.99,0.00010999,2]
[347351166,1735723835795,-500.0,0.00010999,2]
[347351167,1735723835804,-632.61,0.00010999,2]
[347351168,1735723835813,-500.0,0.00010999,2]
[347351169,1735723835822,-4160.65,0.00010999,2]
[347351170,1735723835832,-1079.67976957,0.00010999,2]
[347351172,1735723837726,-385.55744706,0.00010998,2]
[347351173,1735723837737,-1158.35255294,0.00010998,2]
[347351174,1735723837747,-500.0,0.00010998,2]
[347351175,1735723837756,-1945.22023043,0.00010999,2]
[347351176,1735723837765,-3352.7,0.00010999,2]
[347351177,1735723837774,-3939.91,0.00010999,2]
[347351178,1735723837783,-2905.65,0.00010999,2]
[347351179,1735723837793,-500.0,0.00010999,2]
[347351180,1735723837802,-2038.59,0.00010999,2]
[347351181,1735723837811,-959.33,0.00010999,2]
[347351182,1735723837820,-2136.13,0.00010999,2]
[347351183,1735723837830,-958.63,0.00010999,2]
[347351184,1735723837841,-929.39763916,0.00010999,2]
[347351185,1735723837852,-530.84236084,0.00010999,2]
[347351186,1735723837861,-500.0,0.00010999,2]
[347351187,1735723837871,-5658.66,0.00010999,2]
[347351188,1735723837880,-1430.9,0.00010999,2]
[347351189,1735723837890,-2636.69,0.00010999,2]
[347351190,1735723837899,-1135.63035495,0.00010999,2]
[347351191,1735723837910,-13.14964505,0.00010999,2]
[347351192,1735723837919,-737.02933484,0.00010999,2]
[347351193,1735723838058,-482.715,0.00010999,2]
[347351195,1735723838133,-1797.13566516,0.00010999,2]
[347351197,1735723838142,-1928.65,0.00010999,2]
[347351199,1735723838151,-3488.62433484,0.00010999,2]
[347351200,1735723838163,-872.38999999,0.00010999,2]
[347351201,1735723838184,-373.00566517,0.00010999,2]
[347351203,1735723838193,-2095.93,0.00010999,2]
[347351205,1735723838202,-10958.73890074,0.00010999,2]
[347351206,1735723838213,-417.98375549,0.00010999,2]
[347351217,1735723839687,-596.57793866,0.00010999,2]
[347351218,1735723839698,-5846.34940511,0.00010999,2]
[347351219,1735723839708,-1724.886519,0.00010999,2]
[347351220,1735723839719,-862.79,0.00010999,2]
[347351221,1735723839728,-1301.78,0.00010999,2]
[347351222,1735723839738,-1490.28,0.00010999,2]
[347351223,1735723839748,-155.581604,0.00010999,2]
[347351224,1735723839758,-2122.02,0.00010999,2]
[347351225,1735723839768,-460.89794898,0.00010999,2]
[347351226,1735723839793,-1265.63205102,0.00010999,2]
[347351227,1735723839802,-158.523012,0.00010999,2]
[347351228,1735723839811,-2438.94493698,0.00010999,2]
[347351229,1735723839823,-211.34506302,0.00010999,2]
[347351230,1735723839833,-2378.1553847,0.00010999,2]
[347351231,1735723839849,-351.91513711,0.00010999,2]
[347351232,1735723839861,-392.02947819,0.00010999,2]
[347351233,1735723839871,-1446.83424066,0.00010999,2]
[347351234,1735723839883,-596.51555169,0.00010999,2]
[347351235,1735723839901,-414.75020765,0.00010999,2]
[347351236,1735723839911,-19.33088339,0.00010999,2]
[347351302,1735723846571,-3144.32911661,0.00010999,2]
[347351303,1735723846580,-1515.37088339,0.00010999,2]
[347351304,1735723846591,-1770.08911661,0.00010999,2]
[347351305,1735723846600,-2195.36,0.00010999,2]
[347351306,1735723846610,-2423.16,0.00010999,2]
[347351307,1735723846619,-2487.995566,0.00010999,2]
[347351308,1735723846629,-500.0,0.00010999,2]
[347351309,1735723846638,-2555.06,0.00010999,2]
[347351310,1735723846648,-1477.82,0.00010999,2]
[347351311,1735723846657,-2773.76,0.00010999,2]
[347351312,1735723846667,-13854.32,0.00010999,2]
[347351313,1735723846677,-3025.96,0.00010999,2]
[347351314,1735723846686,-2299.03,0.00010999,2]
[347351315,1735723846696,-745.79,0.00010999,2]
[347351316,1735723846705,-1376.49,0.00010999,2]
[347351317,1735723846715,-1860.61,0.00010999,2]
[347351318,1735723846724,-1906.06,0.00010999,2]
[347351319,1735723846734,-10611.64,0.00010999,2]
[347351320,1735723846743,-1096.92,0.00010999,2]
[347351321,1735723846753,-1889.64,0.00010999,2]
[347351322,1735723846762,-5279.4,0.00010999,2]
[347351323,1735723846771,-724.24,0.00010999,2]
[347351324,1735723846781,-2562.96,0.00010999,2]
[347351325,1735723846790,-1510.95,0.00010999,2]
[347351326,1735723846800,-2493.89,0.00010999,2]
[347351327,1735723846809,-2293.96,0.00010999,2]
[347351328,1735723846819,-1882.05,0.00010999,2]
[347351329,1735723846829,-3229.26,0.00010999,2]
[347351330,1735723846839,-3345.53,0.00010999,2]
[347351331,1735723846848,-1574.72,0.00010999,2]
[347351332,1735723846859,-2059.19,0.00010999,2]
[347351333,1735723846868,-2022.19,0.00010999,2]
[347351334,1735723846878,-1762.64,0.00010999,2]
[347351335,1735723846888,-1968.86,0.00010999,2]
[347351336,1735723846897,-500.0,0.00010999,2]
[347351337,1735723846907,-3366.31,0.00010999,2]
[347351338,1735723846916,-597.44,0.00010999,2]
[347351339,1735723846925,-2665.84,0.00010999,2]
[347351340,1735723846935,-2211.84,0.00010999,2]
[347351341,1735723847055,-163.34569945,0.00010999,2]
[347351342,1735723847065,-63939.46150885,0.00011,2]
[347351343,1735723847075,-11973.47914335,0.00011,2]
[347351344,1735723847084,-436.79,0.00011,2]
[347351345,1735723847093,-437.49,0.00011,2]
[347351346,1735723847103,-1552.47,0.00011,2]
[347351347,1735723847112,-436.79,0.00011,2]
[347351348,1735723847122,-874.8,0.00011,2]
[347351349,1735723847131,-1542.51,0.00011,2]
[347351350,1735723847140,-5948219.25511007,0.00011,2]
[347351351,1735723847152,-906.29303367,0.00011,2]
[347351352,1735723847224,-468.329985,0.00010999,2]
[347351353,1735723847236,-653.535883,0.00010999,2]
[347351354,1735723848313,-4015.114132,0.00010999,2]
[347351355,1735723848322,-3421.975396,0.00011,2]
[347351356,1735723848334,-948.18708705,0.00011,2]
[347351357,1735723848752,-320.000002,0.00011,2]
[347351358,1735723848764,-11633.98090159,0.00011,2]
[347351359,1735723848775,-22349.24288122,0.00011,2]
[347351360,1735723848787,-396.18532911,0.00011,2]
[347351361,1735723848841,-21859.2930572,0.00011,2]
[347351362,1735723848937,-548.915419,0.00011,2]
[347351363,1735723850075,200.863278,0.00015507,24]
[347351364,1735723850203,-679.24625272,0.00010241,2]
[347351365,1735723850215,-92.16374728,0.00010241,2]
[347351366,1735723850226,-167.94854792,0.00010998,2]
[347351367,1735723850238,-332.05145208,0.00010998,2]
[347351368,1735723850248,-17434.93014792,0.00011,2]
[347351369,1735723850260,-15213.84407879,0.00011,2]
[347351370,1735723850303,200.863278,0.00015507,24]
[347351371,1735723850320,-13751.65313079,0.00011,2]
[347351372,1735723850332,-14588.7144917,0.00011,2]
[347351373,1735723850344,-13565.399985,0.00011,2]
[347351374,1735723850358,-5700.0,0.00011,2]
[347351375,1735723850504,-1269.24254455,0.00011,2]
[347351376,1735723850524,-359.61853845,0.00011,2]
[347351377,1735723850535,-615.32470942,0.00011,2]
[347351378,1735723850547,-1613.94584762,0.00011,2]
[347351379,1735723850639,200.863278,0.00015507,24]
[347351380,1735723850651,-355.64993399,0.00011,2]
[347351381,1735723850744,200.863278,0.00015507,24]
[347351382,1735723850927,200.863278,0.00015507,24]
[347351383,1735723870040,199.237237,0.00015507,24]
[347351384,1735723870369,199.237237,0.00015507,24]
[347351385,1735723870698,199.237237,0.00015507,24]
[347351386,1735723871030,199.237237,0.00015507,24]
[347351387,1735723871521,199.237237,0.00015507,24]
[347351388,1735723887901,250.0,9.559e-05,2]
[347351389,1735723901239,500.0,9.479e-05,2]
[347351390,1735723901447,500.0,9.479e-05,2]
[347351391,1735723922695,1700.0,9.479e-05,2]
[347351392,1735723942411,250.0,9.54e-05,2]
[347351394,1735724121705,12682.2,9.473e-05,2]
[347351500,1735724278830,179.1,9.476e-05,2]
[347351501,1735724295889,377.3,9.495e-05,2]
[347351622,1735724622825,250.0,9.444e-05,2]
[347351623,1735724661241,1000.0,9.496e-05,2]
[347351624,1735724702265,378.33,8.219e-05,2]
[347351625,1735724765819,250.0,9.462e-05,2]
[347351626,1735724801116,302.0,9.482e-05,3]
[347351627,1735724829389,1500.0,9.499e-05,2]
[347351633,1735724857455,250.0,9.482e-05,2]
[347351634,1735724885488,300.0,9.452e-05,2]
[347351663,1735725032026,-150.0,9.912e-05,2]
[347351665,1735725032036,-150.0,9.912e-05,2]
[347351666,1735725032045,-150.0,9.912e-05,2]
[347351667,1735725032054,-150.0,9.912e-05,2]
[347351668,1735725032064,-2225.81963017,0.00010028,2]
[347351669,1735725032073,-161.99,0.00010028,2]
[347351670,1735725032082,-161.99,0.00010031,2]
[347351671,1735725032091,-161.99,0.00010033,2]
[347351672,1735725032100,-161.99,0.00010036,2]
[347351673,1735725032110,-161.99,0.00010039,2]
[347351674,1735725032119,-161.99,0.00010041,2]
[347351675,1735725032128,-185.71,0.00010044,2]
[347351676,1735725032139,-161.99,0.00010044,2]
[347351677,1735725032148,-161.99,0.00010046,2]
[347351678,1735725032157,-161.99,0.00010049,2]
[347351679,1735725032166,-161.99,0.00010052,2]
[347351680,1735725032176,-161.99,0.00010054,2]
[347351681,1735725032185,-161.99,0.00010057,2]
[347351682,1735725032194,-161.99,0.0001006,2]
[347351683,1735725032203,-161.99,0.00010062,2]
[347351684,1735725032212,-161.99,0.00010065,2]
[347351685,1735725032220,-161.99,0.00010068,2]
[347351686,1735725032230,-161.99,0.0001007,2]
[347351687,1735725032239,-161.99,0.00010073,2]
[347351688,1735725032248,-161.99,0.00010075,2]
[347351689,1735725032257,-161.99,0.00010078,2]
[347351690,1735725032267,-150.0,0.00010133,2]
[347351691,1735725032276,-268.32,0.00010137,2]
[347351692,1735725032285,-150.0,0.00010279,2]
[347351693,1735725032294,-150.0,0.00010353,2]
[347351694,1735725032304,-378.33,0.0001045,2]
[347351695,1735725032313,-214.50036983,0.00010459,2]
[347351696,1735725032325,-1370.49963017,0.00010459,2]
[347351697,1735725032334,-150.0,0.00010463,2]
[347351698,1735725032344,-150.0,0.00010463,2]
[347351699,1735725032353,-158.049,0.0001047,2]
[347351700,1735725032362,-11473.52136983,0.00010481,6]
[347351701,1735725032422,-3084.91813118,0.00010481,6]
[347351702,1735725032433,-6059.9449234,0.00010481,6]
[347351703,1735725034438,-1129.76895749,0.00010481,6]
[347351704,1735725034459,-500.04139326,0.00010481,6]
[347351705,1735725034471,-356.15532581,0.00010481,6]
[347351736,1735725037817,-268942.98989903,0.00010481,6]
[347351737,1735725037827,-5988.99,0.00010481,6]
[347351738,1735725037836,-26609.78,0.00010481,6]
[347351739,1735725037845,-11528.39,0.00010481,6]
[347351740,1735725037854,-11798.31,0.00010481,6]
[347351741,1735725037863,-771.5,0.000105,2]
[347351742,1735725037874,-150.0,0.000105,2]
[347351743,1735725037883,-437.54,0.000105,2]
[347351744,1735725037894,-978.55,0.000105,2]
[347351745,1735725037904,-436.74,0.000105,2]
[347351746,1735725037913,-150.0,0.000105,2]
[347351747,1735725037923,-436.74,0.000105,2]
[347351748,1735725037932,-300.71,0.000105,2]
[347351749,1735725037941,-150.0,0.000105,2]
[347351750,1735725037951,-978.55,0.000105,2]
[347351751,1735725037961,-436.74,0.000105,2]
[347351752,1735725037974,-771.5,0.000105,2]
[347351753,1735725037984,-437.49,0.000105,2]
[347351754,1735725037993,-305.07,0.000105,2]
[347351755,1735725038004,-150.0,0.000105,2]
[347351756,1735725038014,-151.37,0.000105,2]
[347351757,1735725038023,-317.55,0.000105,2]
[347351758,1735725038032,-1066.25,0.000105,2]
[347351776,1735725038325,-196.19,0.000105,2]
[347351778,1735725038339,-436.74,0.000105,2]
[347351780,1735725038349,-436.74,0.000105,2]
[347351782,1735725038358,-150.37,0.000105,2]
[347351784,1735725038367,-874.79,0.000105,2]
[347351786,1735725038376,-978.41,0.000105,2]
[347351788,1735725038385,-201.9,0.000105,2]
[347351790,1735725038395,-151.45,0.000105,2]
[347351792,1735725038404,-771.5,0.000105,2]
[347351794,1735725038413,-437.54,0.000105,2]
[347351796,1735725038422,-260.72,0.000105,2]
[347351798,1735725038431,-771.5,0.000105,2]
[347351800,1735725038439,-1969.54,0.000105,2]
[347351801,1735725038448,-150.0,0.000105,2]
[347351803,1735725038458,-301.2,0.000105,2]
[347351805,1735725038467,-150.0,0.000105,2]
[347351807,1735725038476,-589.42,0.000105,2]
[347351809,1735725038487,-771.5,0.000105,2]
[347351811,1735725038496,-436.79,0.000105,2]
[347351813,1735725038505,-436.79,0.000105,2]
[347351815,1735725038514,-771.5,0.000105,2]
[347351817,1735725038523,-436.79,0.000105,2]
[347351819,1735725038532,-437.49,0.000105,2]
[347351820,1735725038541,-150.0,0.000105,2]
[347351821,1735725038550,-150.0,0.000105,2]
[347351822,1735725038559,-150.0,0.000105,2]
[347351823,1735725038568,-1874.46,0.000105,2]
[347351824,1735725038578,-152.68,0.00010528,2]
[347351825,1735725038591,-151.05,0.00010528,2]
[347351826,1735725038601,-152.13,0.00010528,2]
[347351827,1735725038610,-150.62,0.00010528,2]
[347351828,1735725038620,-151.56,0.00010528,2]
[347351829,1735725038630,-151.72,0.00010528,2]
[347351830,1735725038639,-152.03,0.00010528,2]
[347351831,1735725038649,-150.11,0.00010528,2]
[347351832,1735725038658,-150.59,0.00010528,2]
[347351833,1735725038668,-150.0,0.00010573,2]
[347351834,1735725038679,-1175.11,0.00010575,2]
[347351835,1735725038688,-150.0,0.00010647,2]
[347351836,1735725038698,-377.3,0.00010682,2]
[347351837,1735725038708,-1000.0,0.00010683,2]
[347351838,1735725038718,-1057.0,0.00010689,2]
[347351839,1735725038728,-150.0,0.00010793,2]
[347351840,1735725038738,-500.0,0.00010849,2]
[347351841,1735725038747,-1700.0,0.00010849,2]
[347351842,1735725038756,-500.0,0.0001089,2]
[347351843,1735725038766,-750.7119,0.00010897,2]
[347351844,1735725038775,-3745.5858,0.00010898,2]
[347351845,1735725038784,-330.5993,0.00010898,2]
[347351846,1735725038794,-2140.1772,0.000109,2]
[347351847,1735725038803,-301.12,0.000109,2]
[347351848,1735725038812,-1542.82,0.000109,2]
[347351849,1735725038821,-1473.027,0.00010904,2]
[347351850,1735725038832,-500.95174293,0.00010973,2]
[347351851,1735725038841,-500.0,0.00010973,2]
[347351852,1735725038850,-500.0,0.00010973,2]
[347351853,1735725038860,-21618.62638245,0.0001099,5]
[347351854,1735725038869,-624.48,0.00010996,2]
[347351855,1735725038878,-500.0,0.00010996,2]
[347351856,1735725038887,-521.79,0.00010996,2]
[347351857,1735725038899,-668.52,0.00010996,2]
[347351858,1735725038908,-500.0,0.00010996,2]
[347351859,1735725038918,-789.82,0.00010996,2]
[347351860,1735725038927,-1229.27,0.00010996,2]
[347351861,1735725038937,-500.0,0.00010996,2]
[347351862,1735725038947,-500.0,0.00010996,2]
[347351863,1735725038956,-1193.02,0.00010996,2]
[347351864,1735725038970,-500.0,0.00010996,2]
[347351865,1735725038980,-500.0,0.00010996,2]
[347351866,1735725038989,-650.27,0.00010996,2]
[347351867,1735725038999,-500.0,0.00010996,2]
[347351868,1735725039010,-500.0,0.00010996,2]
[347351869,1735725039019,-500.0,0.00010996,2]
[347351870,1735725039029,-1009.96,0.00010996,2]
[347351871,1735725039038,-500.0,0.00010996,2]
[347351872,1735725039048,-500.0,0.00010996,2]
[347351873,1735725039058,-549.71,0.00010996,2]
[347351874,1735725039067,-500.30582414,0.00010996,2]
[347351875,1735725039076,-500.0,0.00010996,2]
[347351876,1735725039085,-500.0,0.00010996,2]
[347351877,1735725039096,-500.0,0.00010996,2]
[347351878,1735725039105,-969.57,0.00010996,2]
[347351879,1735725039115,-500.0,0.00010996,2]
[347351880,1735725039124,-503.99,0.00010996,2]
[347351881,1735725039133,-500.0,0.00010996,2]
[347351882,1735725039144,-500.0,0.00010996,2]
[347351883,1735725039153,-500.0,0.00010996,2]
[347351884,1735725039162,-500.0,0.00010996,2]
[347351885,1735725039171,-648.84278583,0.00010996,2]
[347351886,1735725039181,-1174.12,0.00010996,2]
[347351887,1735725039190,-500.0,0.00010996,2]
[347351888,1735725039199,-500.57443966,0.00010996,2]
[347351889,1735725039208,-936.83,0.00010996,2]
[347351890,1735725039218,-567.68,0.00010996,2]
[347351891,1735725039227,-500.0,0.00010996,2]
[347351892,1735725039236,-500.0,0.00010996,2]
[347351893,1735725039246,-500.0,0.00010996,2]
[347351894,1735725039255,-901.33,0.00010996,2]
[347351895,1735725039265,-500.0,0.00010996,2]
[347351896,1735725039274,-500.0,0.00010996,2]
[347351897,1735725039283,-500.0,0.00010996,2]
[347351898,1735725039293,-500.0,0.00010996,2]
[347351899,1735725039302,-500.0,0.00010996,2]
[347351900,1735725039311,-748.08,0.00010996,2]
[347351901,1735725039320,-1167.89,0.00010996,2]
[347351902,1735725039330,-766.8,0.00010996,2]
[347351903,1735725039339,-4442.76,0.00010996,2]
[347351904,1735725039348,-685.84,0.00010996,2]
[347351905,1735725039358,-500.0,0.00010996,2]
[347351906,1735725039368,-500.0,0.00010996,2]
[347351907,1735725039377,-610.94938262,0.00010996,2]
[347351908,1735725039387,-500.0,0.00010996,2]
[347351909,1735725039397,-971.13,0.00010996,2]
[347351910,1735725039406,-500.0,0.00010996,2]
[347351911,1735725039415,-500.0,0.00010996,2]
[347351912,1735725039425,-807.06,0.00010996,2]
[347351913,1735725039434,-500.0,0.00010996,2]
[347351914,1735725039444,-500.0,0.00010996,2]
[347351915,1735725039453,-500.0,0.00010996,2]
[347351916,1735725039463,-1591.7,0.00010996,2]
[347351917,1735725039472,-2251.56,0.00010996,2]
[347351918,1735725039481,-882.53,0.00010996,2]
[347351919,1735725039490,-500.0,0.00010996,2]
[347351920,1735725039500,-500.0,0.00010996,2]
[347351921,1735725039509,-6000.08,0.00010996,2]
[347351922,1735725039518,-500.0,0.00010996,2]
[347351923,1735725039527,-500.0,0.00010996,2]
[347351924,1735725039537,-500.0,0.00010996,2]
[347351925,1735725039546,-500.0,0.00010996,2]
[347351926,1735725039555,-500.0,0.00010996,2]
[347351927,1735725039565,-500.0,0.00010996,2]
[347351928,1735725039574,-2823.32,0.00010996,2]
[347351929,1735725039584,-261.69255783,0.00010996,2]
[347351930,1735725039593,-500.0,0.00010996,2]
[347351931,1735725039603,-500.0,0.00010996,2]
[347351932,1735725039612,-500.0,0.00010996,2]
[347351933,1735725039622,-504.94,0.00010996,2]
[347351934,1735725039631,-500.0,0.00010996,2]
[347351935,1735725039641,-5050.68,0.00010996,2]
[347351936,1735725039650,-500.0,0.00010996,2]
[347351937,1735725039660,-623.52,0.00010996,2]
[347351938,1735725039669,-500.0,0.00010996,2]
[347351939,1735725039679,-18882.28,0.00010996,2]
[347351940,1735725039688,-524.04,0.00010996,2]
[347351941,1735725039698,-500.0,0.00010996,2]
[347351942,1735725039708,-500.0,0.00010996,2]
[347351943,1735725039717,-837.13,0.00010996,2]
[347351944,1735725039727,-1517.48,0.00010996,2]
[347351945,1735725039736,-500.0,0.00010996,2]
[347351946,1735725039746,-500.0,0.00010996,2]
[347351947,1735725039756,-500.0,0.00010996,2]
[347351950,1735725039765,-500.0,0.00010996,2]
[347351953,1735725039775,-6110.23,0.00010996,2]
[347351956,1735725039785,-500.0,0.00010996,2]
[347351958,1735725039794,-1859.85,0.00010996,2]
[347351959,1735725039804,-510.79,0.00010996,2]
[347351960,1735725039813,-500.0,0.00010996,2]
[347351962,1735725039823,-712.63,0.00010996,2]
[347351964,1735725039832,-500.0,0.00010996,2]
[347351965,1735725039842,-500.0,0.00010996,2]
[347351966,1735725039851,-500.0,0.00010996,2]
[347351967,1735725039862,-500.0,0.00010996,2]
[347351968,1735725039872,-500.0,0.00010996,2]
[347351969,1735725039881,-500.0,0.00010996,2]
[347351970,1735725039891,-500.0,0.00010996,2]
[347351971,1735725039900,-500.0,0.00010996,2]
[347351972,1735725039910,-3454.6,0.00010996,2]
[347351973,1735725039919,-500.0,0.00010996,2]
[347351974,1735725039930,-4035.05,0.00010996,2]
[347351975,1735725039943,-434.59272903,0.00010996,2]
[347351976,1735725039955,-500.0,0.00010996,2]
[347351977,1735725039973,-500.0,0.00010996,2]
[347351978,1735725039985,-500.0,0.00010996,2]
[347351979,1735725039995,-539.5,0.00010996,2]
[347351980,1735725040004,-1217.08,0.00010996,2]
[347351981,1735725040014,-6756.74,0.00010996,2]
[347351982,1735725040023,-1501.22,0.00010996,2]
[347351983,1735725040032,-500.0,0.00010996,2]
[347351984,1735725040041,-2373.92,0.00010996,2]
[347351985,1735725040050,-500.0,0.00010996,2]
[347351986,1735725040060,-907.7,0.00010996,2]
[347351987,1735725040069,-3364.34,0.00010996,2]
[347351988,1735725040079,-704.95,0.00010996,2]
[347351989,1735725040087,-500.0,0.00010996,2]
[347351990,1735725040096,-7275.76,0.00010996,2]
[347351991,1735725040106,-500.0,0.00010996,2]